bitfinex-derivatives/quotes_SOLF0:USTF0_20241216
["timestamp","ask_amount","ask_price","bid_price","bid_amount"]
[1734334201574,2.2343,223.86,223.85,4.98440519]
[1734334205674,2.02,223.93,223.85,4.98440519]
[1734334205870,2.02,223.94,223.89,6.09120245]
[1734334206074,6.09120245,223.96,223.89,6.09120245]
[1734334206269,8.11120245,223.96,223.9,4.98000657]
[1734334206470,2.2339,223.91,223.89,6.09120245]
[1734334206672,2.2339,223.91,223.9,4.9799128]
[1734334207072,2.2339,223.91,223.89,6.09120245]
[1734334207278,2.2337,223.93,223.9,4.97988073]
[1734334207579,2.2337,223.93,223.92,6.09120245]
[1734334208876,2.2338,223.91,223.9,6.09120245]
[1734334209075,2.2338,223.91,223.9,4.97774832]
[1734334209277,2.2338,223.91,223.9,11.06895077]
[1734334210175,2.2338,223.91,223.9,6.09120245]
[1734334210374,2.2338,223.91,223.9,11.0677617]
[1734334210577,2.2338,223.91,223.9,6.09120245]
[1734334210781,2.2336,223.93,223.9,11.06760515]
[1734334210981,2.2336,223.93,223.92,6.09120245]
[1734334211578,2.2335,223.95,223.92,6.09120245]
[1734334211779,0.16414,223.98,223.94,6.09120245]
[1734334212376,2.2333,223.97,223.94,6.09120245]
[1734334212775,2.2333,223.96,223.94,6.09120245]
[1734334215079,0.16414,223.98,223.94,6.09120245]
[1734334215080,2.2332,223.97,223.94,6.09120245]
[1734334219682,2.2332,223.97,223.96,6.09120245]
[1734334221281,2.39724,223.98,223.96,6.09120245]
[1734334221487,0.16414,223.98,223.96,6.09120245]
[1734334221889,2.39724,223.98,223.96,6.09120245]
[1734334223790,0.16414,223.98,223.93,1.5169]
[1734334223989,2.16414,223.98,223.93,6.09120245]
[1734334224190,2.16414,223.98,223.88,3.0989]
[1734334224191,6.09120245,223.97,223.88,1.5624]
[1734334224397,2.16414,223.98,223.89,6.09120245]
[1734334224586,2.16414,223.98,223.91,6.09120245]
[1734334224893,6.09120245,223.97,223.91,6.09120245]
[1734334226487,2.2337,223.92,223.91,6.09120245]
[1734334226795,6.09120245,223.97,223.91,6.09120245]
[1734334227887,2.2336,223.93,223.91,6.09120245]
[1734334229392,2.2335,223.95,223.91,6.09120245]
[1734334229588,2.2335,223.95,223.94,6.09120245]
[1734334229988,2.2333,223.96,223.94,6.09120245]
[1734334230990,2.2332,223.97,223.94,6.09120245]
[1734334232197,2.2333,223.96,223.94,6.09120245]
[1734334233597,0.16414,223.98,223.94,6.09120245]
[1734334233799,2.2334,223.95,223.94,6.09120245]
[1734334237494,2.2337,223.92,223.91,1.5619]
[1734334237696,6.25534245,223.98,223.91,7.65310245]
[1734334238198,2.2333,223.96,223.93,6.09120245]
[1734334238399,0.16414,223.98,223.93,6.09120245]
[1734334238790,2.2333,223.96,223.93,6.09120245]
[1734334241996,2.2333,223.96,223.91,3.7957]
[1734334242199,2.2333,223.96,223.95,6.09120245]
[1734334245999,2.2335,223.95,223.93,6.09120245]
[1734334246800,2.0,224.01,223.93,6.09120245]
[1734334247001,31.15770669,224.04,224.0,6.09120245]
[1734334247805,2.2326,224.03,224.0,6.09120245]
[1734334248102,31.15770669,224.04,224.0,6.09120245]
[1734334248606,2.2328,224.02,224.0,6.09120245]
[1734334248899,2.2328,224.01,224.0,6.09120245]
[1734334249500,2.2327,224.03,224.0,6.09120245]
[1734334249704,2.0,224.06,224.0,6.09120245]
[1734334250004,7.42932539,224.07,224.0,6.09120245]
[1734334250408,2.2327,224.02,224.0,6.09120245]
[1734334252004,2.2327,224.02,223.96,2.2332]
[1734334252203,7.42932539,224.07,223.97,4.96171014]
[1734334252204,2.2328,224.01,223.97,4.96171014]
[1734334252509,2.2328,224.01,224.0,6.09120245]
[1734334253103,2.2328,224.01,223.95,2.2334]
[1734334253306,2.2328,224.01,224.0,6.09120245]
[1734334253508,2.2328,224.01,223.95,2.2334]
[1734334253708,2.2328,224.01,224.0,6.09120245]
[1734334260115,2.2328,224.01,223.95,2.2334]
[1734334260316,2.2328,224.01,224.0,6.09120245]
[1734334260620,7.42932539,224.07,223.95,2.2334]
[1734334260621,2.2329,224.0,223.95,2.2334]
[1734334260819,2.2329,224.0,223.99,6.09120245]
[1734334261018,2.2329,224.0,223.99,11.0542031]
[1734334261315,2.2327,224.02,223.99,11.0542031]
[1734334261521,2.2327,224.02,224.0,4.96300065]
[1734334261720,2.2327,224.02,224.01,6.09120245]
[1734334265720,2.2327,224.02,223.99,1.5029]
[1734334266021,2.2328,224.01,224.0,6.09120245]
[1734334270030,2.2328,224.01,223.99,1.5029]
[1734334270326,2.2328,224.01,224.0,6.09120245]
[1734334271126,2.2328,224.01,224.0,11.04856681]
[1734334272919,2.0,224.08,224.0,11.04856681]
[1734334273223,2.2328,224.02,223.99,1.5029]
[1734334273424,2.2328,224.02,224.0,4.95984574]
[1734334273627,2.2328,224.02,223.99,1.5029]
[1734334273826,2.2328,224.02,224.0,4.95982032]
[1734334274027,2.2329,224.01,223.99,1.5029]
[1734334274327,2.2329,224.01,224.0,11.05107461]
[1734334276228,2.2329,224.01,224.0,6.09120245]
[1734334276429,2.2329,224.01,224.0,11.0500517]
[1734334277126,2.2329,224.01,224.0,4.95884925]
[1734334277332,6.09120245,224.04,223.97,6.09120245]
[1734334277532,6.09120245,224.04,223.98,4.96002406]
[1734334277732,6.09120245,224.04,223.97,6.09120245]
[1734334277930,6.09120245,224.04,223.98,4.96022736]
[1734334278231,2.0,224.03,223.93,1.5232]
[1734334278428,2.0,224.03,223.94,11.05208387]
[1734334278429,2.2329,224.0,223.94,11.05208387]
[1734334278621,6.09120245,224.02,223.95,4.96088142]
[1734334278824,6.09120245,224.02,223.94,6.09120245]
[1734334279031,6.09120245,224.02,223.95,4.96284993]
[1734334279232,6.09120245,224.02,223.94,6.09120245]
[1734334279432,2.2329,224.0,223.95,4.96452454]
[1734334279736,6.09120245,224.02,223.94,6.09120245]
[1734334281230,6.09120245,224.0,223.92,2.0]
[1734334281433,6.09120245,224.0,223.93,4.96541978]
[1734334281632,6.09120245,224.0,223.94,6.09120245]
[1734334282227,6.09120245,224.0,223.87,4.5511]
[1734334282437,6.09120245,223.98,223.91,6.09120245]
[1734334282633,8.09120245,223.98,223.91,6.09120245]
[1734334283232,8.09120245,223.98,223.88,2.0]
[1734334283433,2.2337,223.93,223.89,4.96731542]
[1734334283734,8.09120245,223.98,223.91,6.09120245]
[1734334284532,2.2337,223.92,223.91,6.09120245]
[1734334284834,2.2337,223.92,223.91,11.05846849]
[1734334285037,2.2335,223.94,223.91,11.05846849]
[1734334285235,2.2335,223.94,223.93,6.09120245]
[1734334285435,8.09120245,224.0,223.93,6.09120245]
[1734334285637,8.09120245,224.0,223.95,6.09120245]
[1734334286538,6.09120245,223.98,223.93,6.09120245]
[1734334287042,2.2336,223.93,223.91,6.09120245]
[1734334288637,6.09120245,223.98,223.91,6.09120245]
[1734334288838,2.2337,223.92,223.91,6.09120245]
[1734334290538,2.2339,223.91,223.88,2.0]
[1734334290737,2.0,223.95,223.88,6.09120245]
[1734334290938,2.0,223.94,223.88,6.09120245]
[1734334291732,8.09120245,223.94,223.88,6.09120245]
[1734334291938,2.0,223.94,223.88,6.09120245]
[1734334292537,2.234,223.89,223.88,6.09120245]
[1734334294845,6.09120245,223.93,223.76,4.5406]
[1734334295042,6.09120245,223.93,223.85,6.09120245]
[1734334295237,6.09120245,223.93,223.82,2.0]
[1734334295443,6.09120245,223.91,223.79,2.0]
[1734334295644,2.0,223.94,223.79,2.0]
[1734334295645,6.09120245,223.89,223.82,6.09120245]
[1734334295842,2.0,223.88,223.82,6.09120245]
[1734334296142,2.2346,223.84,223.82,6.09120245]
[1734334296752,2.0,223.88,223.82,6.09120245]
[1734334296753,2.2346,223.83,223.82,6.09120245]
[1734334297744,2.2346,223.83,223.79,2.0]
[1734334297745,6.09120245,223.85,223.76,2.9817]
[1734334297944,6.09120245,223.85,223.77,4.95534487]
[1734334298146,6.09120245,223.85,223.78,11.04654732]
[1734334298343,2.235,223.79,223.76,2.9817]
[1734334298542,2.0,223.88,223.78,6.09120245]
[1734334298746,2.0,223.88,223.81,6.09120245]
[1734334299047,2.0,223.88,223.83,6.09120245]
[1734334299847,2.2345,223.84,223.83,6.09120245]
[1734334300047,2.0,223.88,223.81,6.09120245]
[1734334301548,2.2346,223.83,223.81,6.09120245]
[1734334303052,2.0,223.88,223.81,6.09120245]
[1734334303053,2.0,223.9,223.81,6.09120245]
[1734334303251,2.2342,223.87,223.85,6.09120245]
[1734334303953,2.2343,223.86,223.85,6.09120245]
[1734334304855,6.09120245,223.9,223.83,6.09120245]
[1734334305054,2.2348,223.81,223.77,2.0]
[1734334305255,2.2348,223.81,223.8,6.09120245]
[1734334314254,2.2347,223.83,223.8,6.09120245]
[1734334314454,2.2347,223.83,223.82,6.09120245]
[1734334314863,2.2349,223.81,223.77,9.65845756]
[1734334315065,2.2349,223.81,223.8,6.09120245]
[1734334320863,2.0,223.91,223.8,6.09120245]
[1734334321166,2.0,223.91,223.84,6.09120245]
[1734334321167,8.09120245,223.91,223.84,6.09120245]
[1734334323571,2.2344,223.86,223.84,6.09120245]
[1734334324568,6.09120245,223.87,223.81,6.09120245]
[1734334325171,2.2344,223.86,223.81,6.09120245]
[1734334325372,6.09120245,223.87,223.81,6.09120245]
[1734334326065,2.2346,223.83,223.81,6.09120245]
[1734334328067,2.2347,223.82,223.81,6.09120245]
[1734334329664,6.09120245,223.87,223.76,2.9817]
[1734334329863,8.09120245,223.85,223.77,4.96847158]
[1734334330062,8.09120245,223.85,223.78,4.96847158]
[1734334330367,8.09120245,223.85,223.76,2.9817]
[1734334330368,2.2352,223.77,223.76,2.9817]
[1734334330568,2.2352,223.77,223.76,7.9530064]
[1734334330866,2.2352,223.77,223.76,9.07290245]
[1734334331070,2.2352,223.77,223.76,14.04429337]
[1734334332767,2.2352,223.77,223.76,4.97139092]
[1734334332973,2.235,223.79,223.74,6.09120245]
[1734334333167,6.09120245,223.81,223.74,6.09120245]
[1734334334571,2.2354,223.75,223.74,6.09120245]
[1734334335763,6.09120245,223.81,223.71,42.96084986]
[1734334335963,2.2357,223.73,223.72,4.97586208]
[1734334337366,2.2357,223.73,223.56,6.25722841]
[1734334337367,8.09120245,223.74,223.64,10.62180245]
[1734334337562,6.09120245,223.72,223.64,10.62180245]
[1734334337869,8.09120245,223.72,223.65,4.97863022]
[1734334338070,8.09120245,223.72,223.64,10.62180245]
[1734334339474,2.2362,223.67,223.64,10.62180245]
[1734334340068,8.09120245,223.72,223.64,9.07120245]
[1734334340272,6.09120245,223.7,223.5,1.4481]
[1734334340578,6.09120245,223.7,223.63,6.09120245]
[1734334341168,2.2366,223.64,223.61,6.09120245]
[1734334341874,2.2366,223.64,223.63,6.09120245]
[1734334342172,2.2364,223.66,223.63,6.09120245]
[1734334342380,6.09120245,223.7,223.59,8.96183069]
[1734334342673,6.09120245,223.7,223.6,4.96462903]
[1734334342976,2.2366,223.63,223.62,6.09120245]
[1734334343176,2.2366,223.63,223.59,3.5118]
[1734334343378,2.2366,223.63,223.62,6.09120245]
[1734334343577,2.2366,223.63,223.59,3.5118]
[1734334343777,2.2366,223.63,223.62,6.09120245]
[1734334344172,2.2366,223.63,223.59,3.5118]
[1734334344373,2.2366,223.63,223.62,6.09120245]
[1734334347976,2.0,223.72,223.62,6.09120245]
[1734334348279,8.09120245,223.72,223.64,6.09120245]
[1734334348980,2.2359,223.7,223.64,6.09120245]
[1734334349181,8.09120245,223.72,223.64,6.09120245]
[1734334350478,2.2362,223.68,223.64,6.09120245]
[1734334351983,6.09120245,223.7,223.6,2.2368]
[1734334352181,6.09120245,223.7,223.62,6.09120245]
[1734334353488,6.09120245,223.7,223.6,2.2368]
[1734334353788,6.09120245,223.7,223.62,6.09120245]
[1734334354481,2.2364,223.65,223.62,6.09120245]
[1734334355886,6.09120245,223.7,223.59,4.5196]
[1734334356187,6.09120245,223.68,223.61,6.09120245]
[1734334357078,2.2367,223.63,223.61,6.09120245]
[1734334357985,2.2367,223.62,223.61,6.09120245]
[1734334358787,6.09120245,223.68,223.59,4.5196]
[1734334358984,2.2369,223.6,223.59,9.15850245]
[1734334359890,2.2369,223.6,223.59,1.5118]
[1734334361688,2.2368,223.62,223.59,1.5118]
[1734334362597,2.2368,223.62,223.58,2.2371]
[1734334362789,2.2368,223.62,223.59,6.09120245]
[1734334364093,6.09120245,223.65,223.59,6.09120245]
[1734334365192,2.2368,223.62,223.59,6.09120245]
[1734334366304,2.2369,223.6,223.57,2.2371]
[1734334366594,2.2369,223.6,223.59,6.09120245]
[1734334368196,2.2369,223.6,223.57,2.2371]
[1734334368405,2.2369,223.6,223.59,6.09120245]
[1734334368898,2.0,223.66,223.59,6.09120245]
[1734334369094,2.0,223.66,223.61,6.09120245]
[1734334369298,6.09120245,223.68,223.61,6.09120245]
[1734334369496,2.2367,223.63,223.61,6.09120245]
[1734334369902,6.09120245,223.68,223.61,6.09120245]
[1734334371003,2.2366,223.63,223.58,2.2371]
[1734334371203,2.2366,223.63,223.6,6.09120245]
[1734334371405,6.09120245,223.66,223.58,8.32830245]
[1734334371594,6.09120245,223.66,223.58,2.2371]
[1734334371799,2.2367,223.63,223.58,8.32830245]
[1734334371996,6.09120245,223.66,223.58,8.32830245]
[1734334373004,2.2367,223.62,223.58,8.32830245]
[1734334374308,2.237,223.59,223.53,2.2376]
[1734334374504,6.09120245,223.62,223.54,11.05710225]
[1734334374806,6.09120245,223.62,223.55,4.9658998]
[1734334375103,2.2372,223.57,223.56,4.9658998]
[1734334376403,2.2372,223.57,223.54,6.09120245]
[1734334376612,2.2372,223.57,223.55,4.9748475]
[1734334376905,2.2372,223.57,223.56,4.9748475]
[1734334379720,2.2372,223.57,223.56,4.97978812]
[1734334382207,2.2372,223.57,223.52,6.7682922]
[1734334382208,2.2375,223.54,223.52,1.4937]
[1734334382510,2.2375,223.54,223.53,4.98799578]
[1734334382804,2.0,223.58,223.53,4.98799578]
[1734334383009,2.2374,223.56,223.54,4.98799578]
[1734334383210,2.2374,223.56,223.55,4.98799578]
[1734334383708,2.2374,223.55,223.52,9.82250245]
[1734334383909,2.2374,223.55,223.53,4.98758017]
[1734334384110,2.2374,223.55,223.54,4.98758017]
[1734334384516,2.2374,223.55,223.52,9.82250245]
[1734334384715,2.2374,223.55,223.53,4.98677315]
[1734334384910,2.2374,223.55,223.52,9.82250245]
[1734334385110,2.2374,223.55,223.53,4.98673273]
[1734334385615,2.2374,223.55,223.52,9.82250245]
[1734334385810,2.2374,223.55,223.53,4.98616529]
[1734334386114,2.2374,223.55,223.52,9.82250245]
[1734334386309,2.2374,223.55,223.53,4.9853564]
[1734334386509,2.2374,223.55,223.52,9.82250245]
[1734334386815,2.2375,223.54,223.53,4.98519159]
[1734334388107,2.0,223.58,223.53,4.98519159]
[1734334388108,2.2374,223.56,223.53,4.98519159]
[1734334388313,2.2374,223.56,223.52,3.7313]
[1734334388617,2.2374,223.56,223.53,4.98372691]
[1734334388916,2.2374,223.56,223.52,9.82250245]
[1734334389116,2.0,223.58,223.53,4.9829059]
[1734334389317,2.2374,223.55,223.52,2.2376]
[1734334389508,2.2374,223.55,223.53,4.9824595]
[1734334389711,2.2374,223.55,223.52,2.2376]
[1734334389911,2.2374,223.55,223.53,4.98232452]
[1734334390222,2.2374,223.55,223.52,2.2376]
[1734334390409,2.2374,223.55,223.53,4.98177157]
[1734334390608,2.2374,223.55,223.52,2.2376]
[1734334390913,2.2374,223.55,223.53,4.97991803]
[1734334391218,2.2374,223.55,223.53,6.09120245]
[1734334391907,66.0,223.83,223.56,2.2372]
[1734334392113,6.09120245,223.64,223.57,6.09120245]
[1734334392813,6.09120245,223.64,223.58,4.97639213]
[1734334393007,6.09120245,223.64,223.57,6.09120245]
[1734334393208,6.09120245,223.64,223.58,4.97624167]
[1734334393412,2.2367,223.62,223.58,2.2371]
[1734334394525,2.2367,223.62,223.59,4.97729566]
[1734334394718,2.2368,223.61,223.57,8.32840245]
[1734334395019,2.2368,223.61,223.58,4.97739449]
[1734334395211,2.2368,223.61,223.59,4.97739449]
[1734334395411,2.2368,223.61,223.57,8.32840245]
[1734334395613,2.2368,223.61,223.58,4.97691488]
[1734334395812,2.2368,223.61,223.59,4.97691488]
[1734334396013,2.2368,223.61,223.57,8.32840245]
[1734334396213,2.2368,223.61,223.58,4.97671129]
[1734334396423,2.2368,223.61,223.59,4.97671129]
[1734334396619,2.2368,223.61,223.57,8.32840245]
[1734334396922,2.2368,223.61,223.58,4.97779821]
[1734334397123,2.2368,223.61,223.59,4.97779821]
[1734334397325,2.2368,223.61,223.57,8.32840245]
[1734334397721,2.2368,223.61,223.58,4.97822949]
[1734334397922,2.2368,223.61,223.59,4.97822949]
[1734334398223,2.2368,223.61,223.57,8.32840245]
[1734334398418,2.2368,223.61,223.58,4.97694886]
[1734334398624,2.0,223.67,223.59,11.06815131]
[1734334398822,6.09120245,223.67,223.6,4.97694886]
[1734334399126,6.09120245,223.67,223.61,4.97694886]
[1734334399329,6.09120245,223.65,223.58,4.2371]
[1734334399626,6.09120245,223.65,223.59,4.97643581]
[1734334399821,2.2368,223.61,223.6,4.97643581]
[1734334401430,2.2368,223.61,223.57,2.2372]
[1734334401628,2.2368,223.61,223.58,4.97743748]
[1734334401827,2.2368,223.61,223.59,4.97702533]
[1734334402028,2.2368,223.61,223.57,2.2372]
[1734334402231,2.2368,223.61,223.58,4.9769217]
[1734334402428,2.2368,223.61,223.59,4.9769217]
[1734334402623,2.2368,223.61,223.57,2.2372]
[1734334402929,2.2368,223.61,223.58,4.97624493]
[1734334403127,6.09120245,223.65,223.59,4.97624493]
[1734334403333,6.09120245,223.63,223.56,2.0]
[1734334403529,6.09120245,223.63,223.57,4.97685205]
[1734334403828,6.09120245,223.63,223.58,4.97685205]
[1734334404023,6.09120245,223.63,223.56,6.09120245]
[1734334404228,2.2371,223.59,223.57,4.97736003]
[1734334404423,2.2371,223.59,223.56,6.09120245]
[1734334404624,2.2371,223.59,223.57,4.97754197]
[1734334404820,2.2369,223.61,223.58,11.06839686]
[1734334405021,2.2369,223.61,223.58,6.09120245]
[1734334405635,2.2369,223.61,223.59,4.97675548]
[1734334405833,2.2369,223.61,223.6,4.97675548]
[1734334407132,2.0,223.64,223.57,8.32830245]
[1734334407133,2.2369,223.6,223.57,8.32830245]
[1734334407336,2.2369,223.6,223.58,4.97626662]
[1734334407531,2.2369,223.6,223.59,4.97626662]
[1734334408339,2.2373,223.57,223.55,2.9896]
[1734334408525,2.0,223.64,223.56,11.06921215]
[1734334408726,5.3715155,223.7,223.59,6.09120245]
[1734334408727,2.0,223.66,223.59,6.09120245]
[1734334408931,6.09120245,223.66,223.6,4.97679797]
[1734334409135,6.09120245,223.66,223.57,6.09120245]
[1734334409337,2.2369,223.61,223.58,4.97696791]
[1734334409537,6.09120245,223.64,223.59,4.97696791]
[1734334409729,6.09120245,223.64,223.57,6.09120245]
[1734334409929,2.2368,223.61,223.58,4.97735842]
[1734334410128,2.2368,223.61,223.57,6.09120245]
[1734334410337,2.2368,223.61,223.58,4.97723892]
[1734334410538,2.2368,223.61,223.57,6.09120245]
[1734334410741,2.2368,223.61,223.58,4.97722339]
[1734334410941,2.2368,223.61,223.57,6.09120245]
[1734334411240,2.2368,223.61,223.58,4.97715169]
[1734334411439,2.2368,223.61,223.57,6.09120245]
[1734334411742,2.2368,223.61,223.58,4.97675349]
[1734334412140,2.237,223.59,223.55,10.51150245]
[1734334412341,8.09120245,223.64,223.56,4.97526882]
[1734334412640,8.09120245,223.64,223.55,10.51150245]
[1734334412844,8.09120245,223.64,223.56,4.97342637]
[1734334413032,8.09120245,223.64,223.55,10.51150245]
[1734334413236,8.09120245,223.64,223.56,4.97330306]
[1734334413237,2.2371,223.59,223.56,4.97330306]
[1734334413439,2.2371,223.59,223.55,12.74890245]
[1734334413640,2.2371,223.59,223.56,4.97294054]
[1734334413831,2.2368,223.61,223.57,13.30134299]
[1734334414038,2.2368,223.61,223.57,8.32840245]
[1734334414240,2.2368,223.61,223.58,4.9724268]
[1734334414444,2.2368,223.61,223.58,6.09120245]
[1734334415138,2.0,223.65,223.59,7.20912456]
[1734334415335,6.09120245,223.66,223.6,11.06282595]
[1734334415535,6.09120245,223.66,223.6,6.09120245]
[1734334415940,2.2366,223.64,223.61,4.97126516]
[1734334416241,2.2366,223.64,223.6,6.09120245]
[1734334416433,2.2366,223.64,223.61,4.97091825]
[1734334416637,2.2366,223.64,223.6,6.09120245]
[1734334416841,2.2366,223.64,223.61,4.96992779]
[1734334417039,2.2366,223.63,223.58,8.32820245]
[1734334417241,2.2366,223.63,223.59,4.96982653]
[1734334417541,2.2366,223.63,223.6,4.96982653]
[1734334417842,2.2366,223.63,223.58,8.32820245]
[1734334418042,2.2366,223.63,223.59,4.9702607]
[1734334418241,2.2366,223.63,223.6,4.9702607]
[1734334418442,2.2366,223.63,223.58,8.32820245]
[1734334418647,2.2366,223.63,223.59,4.97001231]
[1734334418940,2.2366,223.63,223.58,8.32820245]
[1734334418941,2.2366,223.63,223.6,4.97001231]
[1734334419141,2.2367,223.62,223.58,8.32820245]
[1734334419342,6.09120245,223.66,223.59,4.97019481]
[1734334419644,6.09120245,223.66,223.58,6.09120245]
[1734334420141,6.09120245,223.66,223.59,4.97069125]
[1734334420341,6.09120245,223.66,223.58,6.09120245]
[1734334420542,6.09120245,223.66,223.59,4.97025278]
[1734334420742,2.2368,223.62,223.6,4.96983743]
[1734334420943,2.2368,223.62,223.58,6.09120245]
[1734334421140,2.2368,223.62,223.59,4.9698115]
[1734334421344,2.2368,223.62,223.6,4.9698115]
[1734334421639,2.2368,223.62,223.58,8.32820245]
[1734334421846,2.2368,223.62,223.59,4.96903325]
[1734334422041,6.09120245,223.64,223.58,8.32820245]
[1734334422347,2.2368,223.61,223.59,4.96959812]
[1734334422542,2.2368,223.61,223.57,2.2371]
[1734334422842,2.2368,223.61,223.58,4.97003043]
[1734334423037,2.2368,223.61,223.57,8.32830245]
[1734334423236,2.2368,223.61,223.58,4.97006133]
[1734334423545,2.2368,223.61,223.57,8.32830245]
[1734334423743,2.2368,223.61,223.58,4.96758608]
[1734334424047,2.2368,223.61,223.57,8.32830245]
[1734334424343,2.2368,223.61,223.58,4.96791135]
[1734334424542,2.2368,223.61,223.57,8.32830245]
[1734334424742,2.2368,223.61,223.58,4.96773352]
[1734334424943,2.2368,223.61,223.57,8.32830245]
[1734334425140,8.09120245,223.64,223.58,4.96769038]
[1734334425446,6.09120245,223.62,223.55,9.86670245]
[1734334425746,6.09120245,223.62,223.56,4.96863673]
[1734334425942,6.09120245,223.62,223.57,4.96863673]
[1734334426247,2.0,223.64,223.55,9.86670245]
[1734334426248,8.09120245,223.64,223.55,9.86670245]
[1734334426447,2.2371,223.58,223.56,4.96913088]
[1734334426751,2.2371,223.58,223.57,4.96913088]
[1734334428446,8.09120245,223.64,223.57,11.06033333]
[1734334428647,8.09120245,223.64,223.58,4.96913088]
[1734334428844,8.09120245,223.64,223.57,6.09120245]
[1734334429044,8.09120245,223.64,223.58,4.96816222]
[1734334429246,8.09120245,223.64,223.57,8.32830245]
[1734334429445,8.09120245,223.64,223.58,4.96883515]
[1734334429641,2.2368,223.61,223.57,8.32830245]
[1734334429845,2.2368,223.61,223.58,4.96872741]
[1734334430047,2.2368,223.61,223.57,8.32830245]
[1734334430247,2.2368,223.61,223.58,4.96906125]
[1734334430548,2.2368,223.61,223.57,8.32830245]
[1734334430751,2.2368,223.61,223.58,4.96955963]
[1734334431045,2.2368,223.61,223.59,4.96918041]
[1734334431249,2.2368,223.61,223.57,8.32830245]
[1734334431445,2.2368,223.61,223.58,4.96997211]
[1734334431645,2.2368,223.61,223.59,4.96997211]
[1734334431852,2.2368,223.61,223.57,8.32830245]
[1734334432046,2.2367,223.62,223.58,4.96986419]
[1734334432253,2.2367,223.62,223.59,4.96986419]
[1734334432554,2.2367,223.62,223.6,4.96986419]
[1734334432752,2.2367,223.62,223.57,6.09120245]
[1734334433051,2.2367,223.62,223.58,4.97011583]
[1734334433250,2.2367,223.62,223.59,4.97011583]
[1734334433453,2.2367,223.62,223.6,4.97011583]
[1734334433646,2.2367,223.62,223.59,2.2369]
[1734334433844,2.2367,223.62,223.6,4.97108978]
[1734334434153,2.2367,223.62,223.61,4.97224429]
[1734334436855,2.2365,223.64,223.61,4.97224429]
[1734334437054,2.2365,223.64,223.62,4.97224429]
[1734334437355,2.2365,223.64,223.6,2.2368]
[1734334437554,2.2365,223.64,223.61,4.97465645]
[1734334437754,2.2365,223.64,223.59,6.09120245]
[1734334437755,2.2363,223.66,223.62,7.21125645]
[1734334438050,2.2363,223.66,223.59,6.09120245]
[1734334438254,2.2363,223.66,223.6,4.9742004]
[1734334438454,2.2363,223.66,223.61,4.9742004]
[1734334438754,2.2363,223.66,223.62,4.9742004]
[1734334438951,2.2363,223.66,223.63,4.9742004]
[1734334439153,8.09120245,223.68,223.61,2.2367]
[1734334439349,2.2364,223.65,223.62,4.97379464]
[1734334439553,2.2364,223.65,223.63,4.97379464]
[1734334439754,2.2364,223.65,223.61,2.2367]
[1734334439957,2.2364,223.65,223.62,4.97355239]
[1734334440256,2.2364,223.65,223.63,4.97355239]
[1734334440456,2.2364,223.65,223.61,2.2367]
[1734334440754,2.2364,223.65,223.59,6.09120245]
[1734334440955,2.2364,223.65,223.6,7.2096774]
[1734334441155,2.2364,223.65,223.61,4.9728774]
[1734334441357,2.2364,223.65,223.62,4.9728774]
[1734334441557,2.2364,223.65,223.6,2.2368]
[1734334441758,8.09120245,223.68,223.61,4.97249378]
[1734334441959,6.09120245,223.66,223.62,4.97249378]
[1734334442264,6.09120245,223.64,223.57,10.32830245]
[1734334442458,6.09120245,223.64,223.58,4.97380751]
[1734334442760,6.09120245,223.64,223.59,4.97380751]
[1734334442955,6.09120245,223.64,223.57,10.32830245]
[1734334443160,6.09120245,223.64,223.58,4.97305964]
[1734334443348,6.09120245,223.64,223.59,4.97305964]
[1734334443657,6.09120245,223.64,223.57,10.32830245]
[1734334443658,2.2367,223.62,223.57,10.32830245]
[1734334443851,6.09120245,223.64,223.58,4.96935211]
[1734334444053,6.09120245,223.64,223.59,4.96935211]
[1734334444254,6.09120245,223.64,223.57,10.32830245]
[1734334444454,6.09120245,223.64,223.58,4.96820215]
[1734334444649,6.09120245,223.64,223.59,4.96820215]
[1734334444858,6.09120245,223.64,223.6,4.96820215]
[1734334445059,2.2367,223.62,223.57,10.32830245]
[1734334445359,6.09120245,223.64,223.58,4.96794396]
[1734334445559,6.09120245,223.64,223.59,4.96794396]
[1734334445756,2.2368,223.61,223.6,4.96794396]
[1734334446455,2.2368,223.61,223.57,10.32830245]
[1734334446655,2.2368,223.61,223.58,4.96801341]
[1734334446958,2.2368,223.61,223.59,4.96801341]
[1734334447163,2.2368,223.61,223.6,4.96801341]
[1734334447751,2.0,223.68,223.6,4.96801341]